Cogmind - Beta 13 @@@ ROGUE MODE // 2024.04.16 @ 20:12:31 Player: Exceptionally Mediocre Result: Destroyed by B-75 Beast with Heavy Machine Gun Performance ------------- Evolutions (2) 1000 Regions Visited (4) 800 Robots Destroyed (57) 285 Value Destroyed (2877) 2877 Prototype IDs (3) 60 Alien Tech Used (0) 0 Bonus (955) 955 TOTAL SCORE: 5977 Bonus ------- High Alert Combat Kills 255 Entered Garrisons 200 Used RIF Installer 500 Cogmind --------- Core Integrity 0/550 Matter 266/300 Energy 251/265 System Corruption 9% Temperature Warm (108) Movement Rolling (105) Ox1 Location -8/Garrison Parts ------- > --- POWER (1) -------- Improved Ion Engine > --- PROPULSION (6) --- Armored Wheel Armored Wheel Armored Wheel Armored Wheel > --- UTILITY (2) ------ Huge Storage Unit Armor Integrity Analyzer > --- WEAPON (2) ------- Beam Rifle Beam Rifle > --- INVENTORY (25) --- Light Nuclear Core Light Nuclear Core Light Nuclear Core Carbon-fiber Leg Thermal Generator Improved Heat Sink Small Battery (100) Medium Matter Pod (100) Advanced Visual Processing Unit Advanced Targeting Computer Target Analyzer Core Analyzer Improved Utility Shielding Light Armor Plating Reflective Plating Hacking Suite Heavy EM Shotgun Heavy Assault Rifle Heavy Assault Rifle Flak Cannon Flak Cannon Flak Cannon Grenade Launcher Scythe Peak State ------------ > --- POWER ------------ Light Nuclear Core > --- PROPULSION ------- Aluminum Leg Aluminum Leg Carbon-fiber Leg Carbon-fiber Leg Armored Wheel Improved Airjet > --- UTILITY ---------- Huge Storage Unit Armor Integrity Analyzer > --- WEAPON ----------- Gauss Rifle Scythe > --- INVENTORY -------- Light Nuclear Core Light Nuclear Core Light Nuclear Core Armored Wheel Thermal Generator Improved Heat Sink Small Battery Medium Matter Pod Advanced Visual Processing Unit Advanced Targeting Computer Core Analyzer Power Shielding Improved Utility Shielding Reflective Plating Hacking Suite Heavy EM Shotgun Beam Rifle Light Assault Rifle Heavy Assault Rifle Gauss Rifle Gauss Rifle Light Cannon Light Cannon Light Cannon Grenade Launcher [Rating: 36] Favorites ----------- Power Ion Engine Engine Ion Engine Power Core Light Nuclear Core Propulsion Wheel Treads Light Treads Leg Carbon-fiber Leg Wheel Wheel Hover Unit Improved Airjet Utility Huge Storage Unit Device Improved Terrain Scanner Storage Huge Storage Unit Processor Armor Integrity Analyzer Protection Light Armor Plating Weapon Gauss Rifle Energy Gun Medium Laser Ballistic Gun Gauss Rifle Ballistic Cannon Light Cannon Launcher Advanced EMP Blaster Slashing Weapon Scythe Build | -11 -10 -10 -8 -8 ------- Run | Yrd Mat Sub Mat Gar Slots Evolved 4 | . . . 4 . Power . | . . . . . Propulsion 4 | . . . 4 . Utility . | . . . . . Weapon . | . . . . . Parts Attached 103 | 7 17 2 29 48 Power 16 | 1 4 1 6 4 Engine 9 | 1 4 1 2 1 Core 7 | . . . 4 3 Reactor . | . . . . . Propulsion 42 | 2 2 . 16 22 Treads 2 | . . . . 2 Leg 5 | . . . 1 4 Wheel 31 | 2 2 . 13 14 Hover 4 | . . . 2 2 Flight . | . . . . . Utility 8 | 2 3 . 1 2 Device 1 | 1 . . . . Storage 3 | 1 2 . . . Processor 3 | . 1 . 1 1 Hackware . | . . . . . Protection 1 | . . . . 1 Artifact . | . . . . . Weapon 37 | 2 8 1 6 20 Energy Gun 9 | . 4 1 2 2 Energy Cannon . | . . . . . Ballistic Gun 16 | 2 2 . 4 8 Ballistic Cannon 5 | . 1 . . 4 Launcher 2 | . . . . 2 Special Weapon . | . . . . . Impact Weapon . | . . . . . Slashing Weapon 5 | . 1 . . 4 Piercing Weapon . | . . . . . Special Melee Weapon . | . . . . . Unidentified Prototypes 3 | . . . 2 1 Parts Lost 48 | . 5 2 19 22 Power 10 | . 1 1 4 4 Propulsion 24 | . 1 . 12 11 Utility 2 | . 1 . . 1 Weapon 12 | . 2 1 3 6 Highest Loss Streak 12 | . 2 2 12 8 To Critical Strikes 2 | . . . 2 . Average Slot Usage (%) 85 | . 86 98 87 81 Engine 6 | . 13 13 7 . Core 3 | . . . 1 8 Leg 1 | . . . . 3 Wheel 26 | . 27 28 34 22 Hover 4 | . . . 8 7 Storage 10 | . 14 14 9 9 Processor 5 | . 1 14 9 5 Protection 1 | . . . . 3 Energy Gun 6 | . 12 14 5 1 Ballistic Gun 9 | . 8 . 12 11 Ballistic Cannon 3 | . 6 13 . 1 Slashing Weapon 1 | . . . . 2 Naked Turns . | . . . . . Heaviest Build 96 | 11 91 90 95 96 Greatest Support 78 | 26 26 20 78 72 Greatest Overweight (x) 31 | . 9 4 9 31 Average Overweight (x) 2 | . 2 4 1 2 Largest Inventory Capacity 25 | 8 25 25 25 25 Average Capacity 23 | 7 21 25 25 25 Most Carried 25 | 7 22 20 25 25 Average Carried 20 | 2 18 19 23 23 Final Capacity 25 | 8 25 25 25 25 Final Carried 24 | 7 20 19 24 24 Class Distribution -------------------- 63% | Mutant 36% | Scavenger-Mutant Dominant Class ---------------- Mutant | -10/Materials Mutant | -10/Subcaves Scavenger-Mutant | -8/Materials Scavenger-Mutant | -8/Garrison Resources | -11 -10 -10 -8 -8 ----------- Run | Yrd Mat Sub Mat Gar Matter Collected 2290 | 304 300 42 610 1034 Remotely . | . . . . . Salvage Created 3033 | 109 352 . 1101 1471 Parts 132 | 10 14 . 48 60 Haulers Intercepted 2 | . 1 . 1 . Recyclers Shooed 1 | 1 . . . . Parts Field Recycled . | . . . . . Retrieved Matter . | . . . . . Parts Self-Destructed 8 | . . 8 . . Prevented . | . . . . . Kills | -11 -10 -10 -8 -8 ------- Run | Yrd Mat Sub Mat Gar Combat Hostiles Destroyed 42 | . 5 . 17 20 Guns 34 | . 3 . 17 14 Cannons 5 | . 2 . . 3 AOE 3 | . . . . 3 Classes Destroyed 13 | 3 3 . 5 2 Worker 4 | 1 . . 3 . Tunneler 3 | 2 . . 1 . Hauler 2 | . 1 . 1 . Recycler 5 | 1 1 . 3 . Watcher 1 | . 1 . . . Swarmer 6 | . . . 6 . Grunt 16 | . 5 . 4 7 Brawler 2 | . . . 1 1 Duelist 1 | . . . 1 . Sentry 10 | . . . 2 8 Specialist 1 | . . . . 1 Hunter 5 | . . . 3 2 Programmer 1 | . . . . 1 Best Kill Streak 9 | 3 2 . 9 5 Combat Bots Only 8 | . 2 . 8 5 Max Kills in Single Turn 2 | 1 1 . 2 2 Gunslinging . | . . . . . Exploded 2 | . . . . 2 Melee . | . . . . . Uniques/NPCs Destroyed . | . . . . . Combat | -11 -10 -10 -8 -8 -------- Run | Yrd Mat Sub Mat Gar Hostile Shots Fired 427 | . 36 12 172 207 Missed 114 | . 9 5 60 40 Damage Taken 4848 | . 476 234 1505 2633 Core 704 | . 102 51 242 309 Absorbed by Shields . | . . . . . Core Remaining (%) 69 | 100 . 38 . . Volleys Fired 221 | 17 52 1 67 84 Largest 2 | 2 2 2 2 2 Hottest 112 | 40 100 85 78 112 Shots Fired 418 | 34 101 2 132 149 Gun 389 | 34 92 1 132 130 Cannon 27 | . 9 1 . 17 Launcher 2 | . . . . 2 Special . | . . . . . Kinetic 333 | 34 58 1 114 126 Thermal 83 | . 43 1 18 21 Explosive 1 | . . . . 1 Electromagnetic 1 | . . . . 1 Robot Hit Streak 14 | 6 10 2 9 14 Robot Miss Streak 6 | 3 6 . 5 2 Penetration Max 1 | . . . 1 1 Secondary Targets 6 | . . . 4 2 Max Gunslinging Chain 1 | . . . 1 1 Shots Hit Robots 273 | 19 48 2 76 128 Core Hits 119 | 9 17 . 39 54 Critical Kills . | . . . . . Critical Parts Destroyed 4 | 1 . . 2 1 Critical Strikes 18 | 1 1 . 4 12 Burn 4 | . . . 2 2 Destroy 5 | 1 . . 2 2 Blast 2 | . 1 . . 1 Sever 7 | . . . . 7 Melee Attacks 39 | . 2 . . 37 Impact . | . . . . . Slashing 39 | . 2 . . 37 Piercing . | . . . . . Sneak Attacks . | . . . . . Combat Hostiles . | . . . . . Follow-up Attacks . | . . . . . Damage Inflicted 5805 | 177 614 . 1509 3505 Guns 3756 | 177 496 . 1509 1574 Cannons 300 | . 87 . . 213 Explosions 144 | . . . . 144 Melee 1574 | . . . . 1574 Ramming 31 | . 31 . . . Kinetic 3397 | 177 257 . 1370 1593 Thermal 659 | . 326 . 139 194 Explosive 92 | . . . . 92 Electromagnetic 52 | . . . . 52 Impact . | . . . . . Slashing 1574 | . . . . 1574 Piercing . | . . . . . Highest Corruption 9 | . . . 7 9 Average Corruption 7 | . . . 6 7 Corruption Purged . | . . . . . Corruption Blocked . | . . . . . Effects 56 | . . . 5 51 Message Errors 12 | . . . 2 10 Matter Fused 15 | . . . 1 14 Heat Flow Errors 6 | . . . 1 5 Energy Discharges 5 | . . . 1 4 Parts Rejected 2 | . . . . 2 Parts Fused 1 | . . . . 1 Data Loss (minor) 6 | . . . . 6 Data Loss (major) 3 | . . . . 3 Misfires 1 | . . . . 1 Alerts 2 | . . . . 2 Weapon Failures 3 | . . . . 3 Overload Shots . | . . . . . Overflow Damage 29 | . 1 . . 28 Projectiles . | . . . . . Explosions . | . . . . . Melee 29 | . 1 . . 28 Knockbacks 3 | . 2 . . 1 Impact 1 | . 1 . . . Kinetic 2 | . 1 . . 1 Secondary . | . . . . . Self-Inflicted Damage 57 | . 15 . . 42 Shots 2 | . . . . 2 Rammed 1 | . 1 . . . Targets Rammed 1 | . 1 . . . Kicked . | . . . . . Crushed . | . . . . . Highest Temperature 267 | . 231 . 173 267 Average Temperature 57 | . 65 . 46 51 Received Heat Transfer 1491 | . 222 12 315 942 Siege Activations . | . . . . . Robots Corrupted . | . . . . . Combat Hostiles . | . . . . . Parts Fried 1 | . 1 . . . Impact Corruptions 1 | . 1 . . . Robots Melted . | . . . . . Combat Hostiles . | . . . . . Parts Melted 3 | . 2 . . 1 Heat Transferred 2016 | . 851 . 555 610 Parts Sabotaged . | . . . . . Parts Stolen . | . . . . . Parts Stripped . | . . . . . Power Chain Reactions 1 | . . . . 1 Alert | -11 -10 -10 -8 -8 ------- Run | Yrd Mat Sub Mat Gar Peak Influence 924 | 20 140 . 334 924 Initial 217 | . 13 . . 217 Average 262 | 5 53 . 78 514 Maximum Alert Level 3 | . . . 1 3 Low Security (%) 51 | 100 100 . 83 . Level 1 21 | . . . 16 39 Level 2 15 | . . . . 33 Level 3 12 | . . . . 27 Level 4 . | . . . . . Level 5 . | . . . . . High Security . | . . . . . Max Security . | . . . . . Squads Dispatched 5 | . 2 . 3 . Investigation 1 | . 1 . . . Extermination . | . . . . . Reinforcement 2 | . 1 . 1 . Assault . | . . . . . Garrison 2 | . . . 2 . Intercept . | . . . . . Searches Triggered . | . . . . . Construction Impeded . | . . . . . Haulers Reinforced . | . . . . . Active Scanning Responses . | . . . . . Cargo Convoy Interrupts . | . . . . . Stealth | -11 -10 -10 -8 -8 --------- Run | Yrd Mat Sub Mat Gar Distress Signals 2 | . . . 1 1 Communications Jammed . | . . . . . Distress Signals . | . . . . . Times Spotted 71 | . 16 4 26 25 Peak Tracking Total 10 | . 4 4 10 4 Tactical Retreats 2 | . 1 . 1 . Traps | -11 -10 -10 -8 -8 ------- Run | Yrd Mat Sub Mat Gar Traps Triggered 16 | . 8 . . 8 Indirectly . | . . . . . Trap Hack Attempts . | . . . . . Triggered . | . . . . . Disarmed . | . . . . . Reprogrammed . | . . . . . Reused . | . . . . . Traps Extracted . | . . . . . Installed . | . . . . . Triggered 1 | . . 1 . . Machines | -11 -10 -10 -8 -8 ---------- Run | Yrd Mat Sub Mat Gar Machines Disabled 11 | . . . 6 5 Max in Single Turn 1 | . . . 1 1 Garrison Relay 5 | . . . . 5 Machines Repaired . | . . . . . Machines Dismantled . | . . . . . Machines Sabotaged . | . . . . . Overloaded Fab Kills . | . . . . . Hacking | -11 -10 -10 -8 -8 --------- Run | Yrd Mat Sub Mat Gar Machines Accessed 6 | . 1 . 3 2 Terminals 5 | . 1 . 2 2 Fabricators . | . . . . . Repair Stations . | . . . . . Recycling Units . | . . . . . Scanalyzers . | . . . . . Garrison Access 1 | . . . 1 . Total Hacks 12 | . 3 . 4 5 Successful 4 | . . . 3 1 Failed 8 | . 3 . 1 4 Catastrophic 2 | . . . . 2 Database Lockouts . | . . . . . Manual 6 | . 3 . 3 . Terminals 11 | . 3 . 3 5 Fabricators . | . . . . . Repair Stations . | . . . . . Recycling Units . | . . . . . Scanalyzers . | . . . . . Garrison Access 1 | . . . 1 . Terminal Hacks 1 | . . . . 1 Emergency Access Points 1 | . . . . 1 Fabricator Hacks . | . . . . . Repair Station Hacks . | . . . . . Recycling Unit Hacks . | . . . . . Scanalyzer . | . . . . . Garrison Access Hacks 1 | . . . 1 . Unlock Access 1 | . . . 1 . Unauthorized Hacks 2 | . . . 2 . Terminals 2 | . . . 2 . Botnet 2 | . . . 2 . Fabricators . | . . . . . Repair Stations . | . . . . . Recycling Units . | . . . . . Scanalyzers . | . . . . . Garrison Access . | . . . . . Data Cores Recovered . | . . . . . Used . | . . . . . Hacking Detections 3 | . 1 . 1 1 Full Trace Events 2 | . 1 . . 1 Feedback Events 1 | . . . . 1 Corruption 1 | . . . . 1 Feedback Blocked . | . . . . . Robot Schematics Acquired . | . . . . . Robots Built . | . . . . . Authchips . | . . . . . Time . | . . . . . Total Robot Build Rating . | . . . . . Part Schematics Acquired . | . . . . . Parts Built . | . . . . . Authchips . | . . . . . Time . | . . . . . Total Part Build Rating . | . . . . . Parts Repaired . | . . . . . Time . | . . . . . Parts Recycled . | . . . . . Recycled Matter . | . . . . . Retrieved Matter . | . . . . . Retrieved Components . | . . . . . Parts Scanalyzed . | . . . . . Part Schematics Acquired . | . . . . . Parts Damaged . | . . . . . Bothacking | -11 -10 -10 -8 -8 ------------ Run | Yrd Mat Sub Mat Gar Used RIF Installer 1 | . . . . 1 Robots Hacked . | . . . . . Non-combat . | . . . . . Combat . | . . . . . Robot Hacks Applied . | . . . . . Relay Couplers Released 22 | . . . . 22 Machine Destruction 22 | . . . . 22 Fabnet Peak Effective % . | . . . . . Robots Rewired . | . . . . . Allies Hacked . | . . . . . Hacks Repelled . | . . . . . Allies | -11 -10 -10 -8 -8 -------- Run | Yrd Mat Sub Mat Gar Total Allies . | . . . . . Largest Group . | . . . . . Highest-Rated Group . | . . . . . Highest-Rated Ally . | . . . . . Total Orders . | . . . . . Ally Attacks . | . . . . . Total Damage . | . . . . . Kills . | . . . . . Allies Corrupted . | . . . . . Allies Melted . | . . . . . Intel | -11 -10 -10 -8 -8 ------- Run | Yrd Mat Sub Mat Gar Robot Analysis Total . | . . . . . Derelict Logs Recovered 1 | . . 1 . . Drone Launches . | . . . . . Drone Recoveries . | . . . . . Exploration | -11 -10 -10 -8 -8 ------------- Run | Yrd Mat Sub Mat Gar Turns Passed 4032 | 160 1100 359 769 1644 Spaces Moved 2163 | 110 744 253 429 627 Core 3 | 2 . . . 1 Treads 33 | . . . . 33 Legs 26 | . . . . 26 Wheels 1959 | 108 744 253 422 432 Hover 142 | . . . 7 135 Flight . | . . . . . Fastest Speed 50 | 50 90 140 99 105 Average Speed 137 | 89 120 140 115 182 Slowest Speed 1600 | 100 215 140 600 1600 Overloaded Moves . | . . . . . Propulsion Burnouts . | . . . . . Robots Hopped . | . . . . . Cave-ins Triggered . | . . . . . Exploration Rate (%) 43 | 5 88 18 30 75 Regions Visited 4 Branch Regions 1 Pre-discovered Areas . | . . . . . Known Exits Taken 3 | . 1 1 1 . Unknown Exits Taken 1 | 1 . . . . Scrap Searched 1 | . . 1 . . Spaces Dug 2 | . 2 . . . Terrain Destroyed 6 | . 2 . 2 2 Melee 2 | . 2 . . . Projectile 2 | . . . 2 . AOE 1 | . . . . 1 Terrain Rammed . | . . . . . Walls Destroyed . | . . . . . Machines Disabled . | . . . . . Actions | -11 -10 -10 -8 -8 --------- Run | Yrd Mat Sub Mat Gar Total 2749 | 140 853 255 575 926 Wait 13 | . 8 . . 5 Move 2159 | 109 743 252 428 627 Hop . | . . . . . Pick Up 101 | 7 22 . 34 38 Fast Attach 29 | 7 9 . 5 8 Attach 43 | . 5 1 15 22 Detach 4 | . 2 . . 2 Swap 31 | . 3 1 9 18 Drop 44 | . 6 . 17 21 Fire 221 | 17 52 1 67 84 Melee 39 | . 2 . . 37 Ram 1 | . 1 . . . Kick . | . . . . . Crush . | . . . . . Escape Stasis 64 | . . . . 64 Rewire . | . . . . . Trap . | . . . . . Miscellaneous . | . . . . . Route ------- -11/Scrapyard -10/Materials (discovered 4 exits: [*Mat x3] / *Sub) -10/Subcaves -8/Materials -8/Garrison (discovered 3 exits: [*Mat x3]) History --------- Turn | Location | Event 15 | -11/Scrapyard | Discovered new exit (range 16) 161 | -11/Scrapyard | Entered Materials 346 | -10/Materials | Build established: Mutant 396 | -10/Materials | Discovered new exit (range 8) 548 | -10/Materials | Discovered new exit (range 16) 718 | -10/Materials | Discovered new exit (range 3) 1257 | -10/Materials | Discovered new exit (range 3) 1260 | -10/Materials | Identified exit to Subcaves 1261 | -10/Materials | Entered Subcaves 1305 | -10/Subcaves | Learned Materials interactive machine intel 1606 | -10/Subcaves | Discovered new exit (range 11) 1607 | -10/Subcaves | Core integrity fell below 50% 1618 | -10/Subcaves | Identified exit to Materials 1620 | -10/Subcaves | Entered Materials 1620 | -8/Materials | Evolved 4 slots: Propulsion x4 1621 | -8/Materials | Loaded intel: 19 interactive machine locations 2089 | -8/Materials | Lost 5 parts (1p3n1w) 2238 | -8/Materials | Garrison activated, responded to threat 2321 | -8/Materials | Destroyed 8 combat bots 2379 | -8/Materials | Lost 12 parts (3p7n2w) 2386 | -8/Materials | Identified exit to Garrison 2389 | -8/Materials | Entered Garrison 2433 | -8/Garrison | Triggered checkpoint 2525 | -8/Garrison | Lost 5 parts (1p2n2w) 2603 | -8/Garrison | Discovered new exit (range 5) 2741 | -8/Garrison | Triggered checkpoint 2849 | -8/Garrison | Garrison Relay disabled 2952 | -8/Garrison | Installed Relay Interface Framework 3068 | -8/Garrison | Triggered checkpoint 3088 | -8/Garrison | Core integrity fell below 50% 3123 | -8/Garrison | Lost 3 parts (1n1u1w) 3340 | -8/Garrison | Build established: Scavenger-Mutant 3444 | -8/Garrison | Discovered new exit (range 14) 3451 | -8/Garrison | Garrison Relay disabled 3475 | -8/Garrison | Garrison Relay disabled 3659 | -8/Garrison | Discovered new exit (range 10) 3683 | -8/Garrison | Triggered checkpoint 3766 | -8/Garrison | Lost 8 parts (1p5n2w) 3788 | -8/Garrison | Garrison Relay disabled 3933 | -8/Garrison | Triggered checkpoint 3948 | -8/Garrison | Core integrity fell below 20% 3973 | -8/Garrison | Garrison Relay disabled 4027 | -8/Garrison | Spotted B-75 Beast 4033 | -8/Garrison | Destroyed by B-75 Beast with Heavy Machine Gun Last Messages --------------- 03950_ Y-45 Defender destroyed. 03959_ Acquired 17 matter. 03960_ Acquired 37 matter. 03966_ Connecting with Garrison Terminal... >>Access(Emergency) Found 46 emergency access points. Map updated. 03973_ Garrison Relay disabled. 03973_ Relay Coupler [NC] tumbles out of relay unit. 03973_ Relay Coupler [Duelist] tumbles out of relay unit. 03973_ Relay Coupler [Specialist] tumbles out of relay unit. 03987_ I0FIQ5X J0I|L|X IRLD|K 04005_ System corrupted: Component data lost. 04026_ W-25 Informer springs to life. 04026_ W-25 Informer sends out distress signal. 04030_ Arm. Wheel destroyed. 04032_ System corrupted: Matter fused (-7). Map ----- +----------------------------------------------------+ | | | | | | | | | ?????????????????????????????????????????????????? | | ?????????????????????????????????????????????????? | | ?????????????????????????????????????????????????? | | ?????????????????????????????????????????????????? | | ?????????????????????????????????????????????????? | | ?????????????????????????????????????????????????? | | ?????????????????????????????????????????????????? | | ?????????????????????????????????????????????????? | | ?????????????????????????????????????????????????? | | ?????????????????????????????????????????????????? | | ?????????????????????????????????????????????????? | | ??????????????????????????????????????+??????????? | | ??????????????????????????????????????+??????????? | | ?????????????????????????????????????????????????? | | ?????????????????????????????????????????????????? | | #????????????????????????????????????????????????? | | #????????????????????????????????????????????????? | | ############??????????????????????????? ????????? | | #""""""""""????????????###########???? ????????? | | #"!!!!!!"""#???????????#""""""""""#??? ????????? | | "# ""#???????????#"""!=]]"""#??? #???????? | | ## !"#???????????#@ %% ""#??? #???????? | | ## !"#???????????#"[ !"#??? #???????? | | ## !"#???????????#"= ;+++ ["#??? #???????? | | !"#???????????#"[ ;BB+ ="#??# #???????? | | ""#???????????#"* +BB+ ]"#??# #???????? | | ##"!!!!!!"""#???????????#"[ ++++ !"#??# #???????? | | ##""""""""""????????????#"! w ]"#??# #???????? | | ############????????????#"" ""#??# #???????? | | #???????????????????????### ###??# #???????? | | #?????????????????????????# #????# #???????? | | #?????????????????????????## ####????# #???????? | | ###########??????#++########;+######### #???????? | | #??????# #???????? | | #??????# !#???????? | | ######## #??????# ################### !#???????? | | #??????# #??????# #???????????????###*%#???????? | | +??????# #??????# #???????????????# #???????? | | #??????+ #??????# #???????????????# #???????? | | #??????# #??????# #???????????????# ##??????? | | #??????# ######## #???????????????### T#??????? | | #??????# ## ## #?????????????????# ##??????? | | #?????## ## ## ##????????????????# #???????? | | ##+#### #????????????????# ######### | | / !* #????????????????# ^ # | | #????????????????# ! # | +----------------------------------------------------+ Best States ------------- Heat Dissipation 31 Energy Generation 14 Energy Capacity 265 Matter Stores 300 Matter Capacity 300 Sight Range 16 Terrain Scan Range 16 Terrain Scan Density 10 Armor Coverage 150 Evasion (%) 42 Armor Integrity Analysis 30 Recoil Reduction 2 Item Schematics ----------------- None Robot Schematics ------------------ None Fabricated ------------ Nothing Alien Tech Used ----------------- None Achievements -------------- None Challenges ------------ None Game ------ Seed SensorVortexThrower Manual? 0 Play Time 00:34:21 Cumulative 68.4 hours Start 2024.04.16 @ 19:37:02 End 2024.04.16 @ 20:12:31 Sessions 1 Manual Loads 0 Difficulty Rogue Special Mode None Game No. 83 Rogue 83 Adventurer 0 Explorer 0 Win Type - Total 0 Types 0/0/0/0/0/0/0/0/0 Lore% 19 Gallery% 42 Achievement% 30 Wizard Run 0 Options --------- Layout 1 ASCII 0 Keyboard 1 Movement Vi Keybinds 0 Fullscreen 1 Font 24/Smallcaps Map View 50x35 Zoom Use 0% Tactical HUD 1 Map Filters NONE Filters NONE Steam 1 RUN: 7fa7649a-3c68-424e-829a-95c3c35b5f20